[Event "Early-Titled-Tuesday-Blitz-September-26-2023"]
[Site "Chess.com"]
[Date "2023.09.26"]
[Round "3"]
[White "WindWhistler11"]
[Black "AsselLesbekova"]
[Result "1-0"]
[WhiteElo "2468"]
[BlackElo "2273"]
[TimeControl "180+1"]
[EndTime "8:25:42 PDT"]
[Termination "WindWhistler11 won by resignation"]

1. Nf3 {[%clk 0:03:00.9]} 1... d5 {[%clk 0:02:59.7]} 2. c4 {[%clk 0:02:46.4]}
2... e6 {[%clk 0:02:58.6]} 3. g3 {[%clk 0:02:45.2]} 3... a6 {[%clk 0:02:57.5]}
4. Bg2 {[%clk 0:02:45.8]} 4... dxc4 {[%clk 0:02:55]} 5. a4 {[%clk 0:02:44.2]}
5... Nc6 {[%clk 0:02:46.7]} 6. O-O {[%clk 0:02:33.2]} 6... Nf6 {[%clk
0:02:45.7]} 7. Na3 {[%clk 0:02:26.3]} 7... Bxa3 {[%clk 0:02:35.7]} 8. Rxa3
{[%clk 0:02:23.1]} 8... Bd7 {[%clk 0:02:35.8]} 9. b3 {[%clk 0:02:09.5]} 9...
cxb3 {[%clk 0:02:34.7]} 10. Rxb3 {[%clk 0:02:03.9]} 10... Na5 {[%clk 0:02:29.7]}
11. Rd3 {[%clk 0:02:03.5]} 11... Qe7 {[%clk 0:02:20.2]} 12. Ba3 {[%clk
0:01:51.2]} 12... c5 {[%clk 0:02:17.8]} 13. Ne5 {[%clk 0:01:49.5]} 13... Nc6
{[%clk 0:02:11.4]} 14. Nxc6 {[%clk 0:01:30]} 14... Bxc6 {[%clk 0:02:09.6]} 15.
Bxc6+ {[%clk 0:01:23.9]} 15... bxc6 {[%clk 0:02:10.2]} 16. Qc2 {[%clk
0:01:23.6]} 16... Nd7 {[%clk 0:02:06.6]} 17. Rb1 {[%clk 0:01:15.7]} 17... Rb8
{[%clk 0:01:55.9]} 18. Rxb8+ {[%clk 0:01:00.3]} 18... Nxb8 {[%clk 0:01:56.2]}
19. Bxc5 {[%clk 0:01:00.8]} 19... Qc7 {[%clk 0:01:45]} 20. Bd6 {[%clk
0:00:56.6]} 20... Qc8 {[%clk 0:01:38]} 21. Bxb8 {[%clk 0:00:54]} 21... Qxb8
{[%clk 0:01:38.7]} 22. Qxc6+ {[%clk 0:00:50.7]} 22... Kf8 {[%clk 0:01:38.5]} 23.
Qc5+ {[%clk 0:00:41.1]} 23... Kg8 {[%clk 0:01:36.8]} 24. Qe7 {[%clk 0:00:39.8]}
1-0

[Event "Early-Titled-Tuesday-Blitz-September-26-2023"]
[Site "Chess.com"]
[Date "2023.09.26"]
[Round "3"]
[White "Hilary46"]
[Black "kereswasbest"]
[Result "1-0"]
[WhiteElo "2575"]
[BlackElo "2278"]
[TimeControl "180+1"]
[EndTime "8:26:05 PDT"]
[Termination "Hilary46 won by resignation"]

1. e4 {[%clk 0:03:00.9]} 1... e5 {[%clk 0:02:53.2]} 2. Nf3 {[%clk 0:03:01.3]}
2... Nc6 {[%clk 0:02:52.8]} 3. Bb5 {[%clk 0:03:02]} 3... Nf6 {[%clk 0:02:52.5]}
4. O-O {[%clk 0:03:00.7]} 4... Nxe4 {[%clk 0:02:52.8]} 5. Re1 {[%clk 0:03:01.3]}
5... Nd6 {[%clk 0:02:52.8]} 6. Nxe5 {[%clk 0:03:02]} 6... Be7 {[%clk 0:02:52.3]}
7. Bd3 {[%clk 0:03:01.3]} 7... O-O {[%clk 0:02:50.5]} 8. Nc3 {[%clk 0:03:01.2]}
8... Nxe5 {[%clk 0:02:50.5]} 9. Rxe5 {[%clk 0:03:02.1]} 9... Bf6 {[%clk
0:02:50.9]} 10. Re3 {[%clk 0:03:02.2]} 10... Re8 {[%clk 0:02:48.7]} 11. Nd5
{[%clk 0:03:00.2]} 11... Rxe3 {[%clk 0:02:44.7]} 12. fxe3 {[%clk 0:02:53.5]}
12... c6 {[%clk 0:02:40.3]} 13. Nxf6+ {[%clk 0:02:53.1]} 13... Qxf6 {[%clk
0:02:40.8]} 14. Rb1 {[%clk 0:02:53.4]} 14... Nf5 {[%clk 0:02:38]} 15. Qf3 {[%clk
0:02:51.1]} 15... d5 {[%clk 0:02:37.6]} 16. g4 {[%clk 0:02:49.2]} 16... Nh4
{[%clk 0:02:35.9]} 17. Qxf6 {[%clk 0:02:49.4]} 17... gxf6 {[%clk 0:02:36.3]} 18.
h3 {[%clk 0:02:47.6]} 18... f5 {[%clk 0:02:33.1]} 19. gxf5 {[%clk 0:02:44.9]}
19... Bxf5 {[%clk 0:02:32.8]} 20. Bxf5 {[%clk 0:02:44.4]} 20... Nxf5 {[%clk
0:02:33.7]} 21. Kf2 {[%clk 0:02:44.1]} 21... f6 {[%clk 0:02:34]} 22. d3 {[%clk
0:02:40.9]} 22... Kf7 {[%clk 0:02:33.9]} 23. Bd2 {[%clk 0:02:40.5]} 23... Rg8
{[%clk 0:02:32.8]} 24. Rg1 {[%clk 0:02:40.6]} 24... Rxg1 {[%clk 0:02:32.4]} 25.
Kxg1 {[%clk 0:02:41.5]} 25... Kg6 {[%clk 0:02:31.4]} 26. Kg2 {[%clk 0:02:38.9]}
26... h5 {[%clk 0:02:30.9]} 27. Kf3 {[%clk 0:02:38.5]} 27... Nd6 {[%clk
0:02:28.9]} 28. Kf4 {[%clk 0:02:38]} 28... Nc8 {[%clk 0:02:24.3]} 29. e4 {[%clk
0:02:36.3]} 29... Ne7 {[%clk 0:02:22.2]} 30. Bb4 {[%clk 0:02:30]} 30... Nc8
{[%clk 0:02:10.9]} 31. exd5 {[%clk 0:02:29.4]} 31... cxd5 {[%clk 0:02:11.1]} 32.
Bc5 {[%clk 0:02:25.8]} 32... Nb6 {[%clk 0:02:05.7]} 33. Bxb6 {[%clk 0:02:25.6]}
33... axb6 {[%clk 0:02:06.4]} 34. c4 {[%clk 0:02:20.9]} 34... dxc4 {[%clk
0:01:58.1]} 35. dxc4 {[%clk 0:02:21.8]} 35... f5 {[%clk 0:01:57.6]} 36. h4
{[%clk 0:02:21.6]} 36... Kf6 {[%clk 0:01:58.3]} 37. b3 {[%clk 0:02:20]} 37...
Ke6 {[%clk 0:01:58.7]} 38. b4 {[%clk 0:02:03.6]} 38... Kf6 {[%clk 0:01:57.7]}
39. a3 {[%clk 0:01:52.4]} 39... Ke6 {[%clk 0:01:57.7]} 40. a4 {[%clk 0:01:52.7]}
40... Kf6 {[%clk 0:01:54.9]} 41. c5 {[%clk 0:01:48.4]} 41... bxc5 {[%clk
0:01:54.8]} 42. bxc5 {[%clk 0:01:49.3]} 42... Ke6 {[%clk 0:01:55.1]} 43. a5
{[%clk 0:00:57.7]} 43... Kd5 {[%clk 0:01:53.2]} 44. Kxf5 {[%clk 0:00:58.2]}
44... Kxc5 {[%clk 0:01:53.7]} 45. Kg5 {[%clk 0:00:58.8]} 45... Kb5 {[%clk
0:01:52.5]} 46. Kxh5 {[%clk 0:00:59.3]} 46... Kxa5 {[%clk 0:01:53.3]} 47. Kg4
{[%clk 0:00:58.5]} 47... b5 {[%clk 0:01:53.6]} 48. h5 {[%clk 0:00:59]} 48... b4
{[%clk 0:01:54.2]} 49. h6 {[%clk 0:00:59.6]} 49... b3 {[%clk 0:01:54.9]} 50. h7
{[%clk 0:01:00.2]} 50... b2 {[%clk 0:01:55.5]} 51. h8=Q {[%clk 0:01:00.7]} 51...
b1=Q {[%clk 0:01:56.2]} 52. Qa8+ {[%clk 0:01:00.8]} 52... Kb4 {[%clk 0:01:56.1]}
53. Qb8+ {[%clk 0:01:01.1]} 53... Kc3 {[%clk 0:01:55.5]} 54. Qxb1 {[%clk
0:01:02]} 1-0

[Event "Early-Titled-Tuesday-Blitz-September-26-2023"]
[Site "Chess.com"]
[Date "2023.09.26"]
[Round "3"]
[White "ApoIogiA"]
[Black "noblerone"]
[Result "0-1"]
[WhiteElo "2290"]
[BlackElo "2499"]
[TimeControl "180+1"]
[EndTime "8:26:09 PDT"]
[Termination "noblerone won by resignation"]

1. e4 {[%clk 0:00:21.1]} 1... c5 {[%clk 0:02:54.5]} 2. Nf3 {[%clk 0:00:20]} 2...
e6 {[%clk 0:02:55]} 3. d4 {[%clk 0:00:19.9]} 3... cxd4 {[%clk 0:02:55.9]} 4.
Nxd4 {[%clk 0:00:20.6]} 4... Qb6 {[%clk 0:02:56.5]} 5. Nb3 {[%clk 0:00:19.1]}
5... Qc7 {[%clk 0:02:56.4]} 6. Be3 {[%clk 0:00:19]} 6... Nf6 {[%clk 0:02:56.1]}
7. Nc3 {[%clk 0:00:19.6]} 7... Bb4 {[%clk 0:02:55.1]} 8. Qd3 {[%clk 0:00:20.2]}
8... d5 {[%clk 0:02:52.3]} 9. exd5 {[%clk 0:00:20]} 9... Nxd5 {[%clk 0:02:52.3]}
10. Bd2 {[%clk 0:00:18.8]} 10... Nxc3 {[%clk 0:02:50.8]} 11. Bxc3 {[%clk
0:00:18.7]} 11... Bxc3+ {[%clk 0:02:51.1]} 12. bxc3 {[%clk 0:00:19.1]} 12... Nd7
{[%clk 0:02:49]} 13. Be2 {[%clk 0:00:19.3]} 13... Ne5 {[%clk 0:02:47.6]} 14. Qd4
{[%clk 0:00:17.8]} 14... O-O {[%clk 0:02:41.8]} 15. Rd1 {[%clk 0:00:18.1]} 15...
b6 {[%clk 0:02:34.8]} 16. f4 {[%clk 0:00:17]} 16... Ng6 {[%clk 0:02:28.4]} 17.
Bf3 {[%clk 0:00:16.4]} 17... Bb7 {[%clk 0:02:23.1]} 18. Bxb7 {[%clk 0:00:15.4]}
18... Qxb7 {[%clk 0:02:24]} 19. O-O {[%clk 0:00:15.9]} 19... Rac8 {[%clk
0:02:22.9]} 20. Rd3 {[%clk 0:00:12.4]} 20... Nh4 {[%clk 0:02:10.6]} 21. Rg3
{[%clk 0:00:10.2]} 21... Nf5 {[%clk 0:02:10.4]} 22. Qe5 {[%clk 0:00:08.1]} 22...
Nxg3 {[%clk 0:02:09]} 23. hxg3 {[%clk 0:00:08.5]} 23... Qc7 {[%clk 0:02:09.4]}
24. Qe4 {[%clk 0:00:06.8]} 24... Qxc3 {[%clk 0:02:08.1]} 25. Rf2 {[%clk
0:00:07.4]} 25... Rcd8 {[%clk 0:01:58.4]} 26. Kh2 {[%clk 0:00:05.5]} 26... Qf6
{[%clk 0:01:54.8]} 27. g4 {[%clk 0:00:05.1]} 27... Qh4+ {[%clk 0:01:52.7]} 0-1

[Event "Early-Titled-Tuesday-Blitz-September-26-2023"]
[Site "Chess.com"]
[Date "2023.09.26"]
[Round "3"]
[White "Mikasinski"]
[Black "Cheer_Down"]
[Result "1-0"]
[WhiteElo "2710"]
[BlackElo "2476"]
[TimeControl "180+1"]
[EndTime "8:26:19 PDT"]
[Termination "Mikasinski won by checkmate"]

1. e4 {[%clk 0:03:00.9]} 1... c5 {[%clk 0:02:58.7]} 2. Nf3 {[%clk 0:03:00.3]}
2... d6 {[%clk 0:02:58.6]} 3. d4 {[%clk 0:03:00.2]} 3... cxd4 {[%clk 0:02:59.5]}
4. Nxd4 {[%clk 0:03:00.1]} 4... Nf6 {[%clk 0:02:59.7]} 5. Nc3 {[%clk 0:02:58.8]}
5... a6 {[%clk 0:02:59.9]} 6. Rg1 {[%clk 0:02:57.8]} 6... h5 {[%clk 0:02:58.5]}
7. h3 {[%clk 0:02:55.1]} 7... e5 {[%clk 0:02:57.8]} 8. Nb3 {[%clk 0:02:48.9]}
8... Be6 {[%clk 0:02:57.7]} 9. g4 {[%clk 0:02:47.3]} 9... hxg4 {[%clk
0:02:58.6]} 10. hxg4 {[%clk 0:02:48.2]} 10... d5 {[%clk 0:02:58.1]} 11. exd5
{[%clk 0:02:47.4]} 11... Nxd5 {[%clk 0:02:57.7]} 12. Nxd5 {[%clk 0:02:48]} 12...
Qxd5 {[%clk 0:02:56.4]} 13. Qxd5 {[%clk 0:02:46.1]} 13... Bxd5 {[%clk
0:02:55.8]} 14. Be3 {[%clk 0:02:46.6]} 14... Nc6 {[%clk 0:02:46.5]} 15. O-O-O
{[%clk 0:02:42.5]} 15... O-O-O {[%clk 0:02:44.7]} 16. Bb6 {[%clk 0:02:38.4]}
16... Rd7 {[%clk 0:02:44.3]} 17. c3 {[%clk 0:02:03.3]} 17... Bf3 {[%clk
0:02:28.4]} 18. Rxd7 {[%clk 0:02:01.5]} 18... Kxd7 {[%clk 0:02:29.3]} 19. Bc4
{[%clk 0:02:00.4]} 19... f6 {[%clk 0:02:25.2]} 20. Nd2 {[%clk 0:01:54]} 20...
Rh3 {[%clk 0:02:18.4]} 21. Nxf3 {[%clk 0:01:40.7]} 21... Rxf3 {[%clk 0:02:17.7]}
22. g5 {[%clk 0:01:21.9]} 22... Rf4 {[%clk 0:02:09]} 23. Bd5 {[%clk 0:01:16.2]}
23... e4 {[%clk 0:02:01.5]} 24. gxf6 {[%clk 0:01:11.5]} 24... gxf6 {[%clk
0:02:01.8]} 25. Be3 {[%clk 0:01:10.7]} 25... Rh4 {[%clk 0:02:01.5]} 26. Rg8
{[%clk 0:01:10.4]} 26... Be7 {[%clk 0:01:55.9]} 27. Rg7 {[%clk 0:01:09.3]} 27...
Kd6 {[%clk 0:01:53.9]} 28. Bb3 {[%clk 0:01:01.6]} 28... Ne5 {[%clk 0:01:53.2]}
29. Kd2 {[%clk 0:00:59.3]} 29... f5 {[%clk 0:01:42.3]} 30. Ke2 {[%clk
0:00:50.5]} 30... f4 {[%clk 0:01:39.7]} 31. Bd4 {[%clk 0:00:47.9]} 31... Nf3
{[%clk 0:01:36.3]} 32. Rg6+ {[%clk 0:00:47.5]} 32... Kc7 {[%clk 0:01:34.3]} 33.
Bb6+ {[%clk 0:00:47.1]} 33... Kd7 {[%clk 0:01:29.9]} 34. Ba4+ {[%clk 0:00:46.9]}
34... Kc8 {[%clk 0:01:20.9]} 35. Rg8+ {[%clk 0:00:46.3]} 35... Bd8 {[%clk
0:01:21.3]} 36. Rxd8# {[%clk 0:00:46.5]} 1-0

[Event "Early-Titled-Tuesday-Blitz-September-26-2023"]
[Site "Chess.com"]
[Date "2023.09.26"]
[Round "3"]
[White "Khromkin"]
[Black "melissa_guez"]
[Result "1-0"]
[WhiteElo "2349"]
[BlackElo "2064"]
[TimeControl "180+1"]
[EndTime "8:26:23 PDT"]
[Termination "Khromkin won by checkmate"]

1. d4 {[%clk 0:03:00.9]} 1... d5 {[%clk 0:02:59.6]} 2. c4 {[%clk 0:03:00.5]}
2... c6 {[%clk 0:02:59.7]} 3. Nf3 {[%clk 0:03:00.3]} 3... Nf6 {[%clk 0:02:59.3]}
4. Nc3 {[%clk 0:03:00.9]} 4... e6 {[%clk 0:02:56.7]} 5. Bg5 {[%clk 0:02:59.9]}
5... h6 {[%clk 0:02:55.5]} 6. Bxf6 {[%clk 0:02:58.8]} 6... Qxf6 {[%clk
0:02:54.8]} 7. e4 {[%clk 0:02:59.4]} 7... dxe4 {[%clk 0:02:44.9]} 8. Nxe4 {[%clk
0:02:58.9]} 8... Qe7 {[%clk 0:02:44.7]} 9. Bd3 {[%clk 0:02:54.8]} 9... g6 {[%clk
0:02:44.4]} 10. O-O {[%clk 0:02:54.7]} 10... Bg7 {[%clk 0:02:44.1]} 11. Re1
{[%clk 0:02:55.3]} 11... O-O {[%clk 0:02:43.9]} 12. c5 {[%clk 0:02:55.9]} 12...
Nd7 {[%clk 0:02:21.2]} 13. Nd6 {[%clk 0:02:54.5]} 13... Nf6 {[%clk 0:02:21]} 14.
Ne5 {[%clk 0:02:51.6]} 14... Nd5 {[%clk 0:02:11.6]} 15. a3 {[%clk 0:02:50.8]}
15... b6 {[%clk 0:01:50.6]} 16. b4 {[%clk 0:02:49.6]} 16... bxc5 {[%clk
0:01:48.6]} 17. bxc5 {[%clk 0:02:45]} 17... Qc7 {[%clk 0:01:45.8]} 18. Qg4
{[%clk 0:02:37.8]} 18... a5 {[%clk 0:01:33.7]} 19. Nxg6 {[%clk 0:02:26.8]} 19...
fxg6 {[%clk 0:01:14.3]} 20. Qxg6 {[%clk 0:02:26.6]} 20... Nf6 {[%clk 0:01:14.1]}
21. Re3 {[%clk 0:02:20]} 21... Ba6 {[%clk 0:00:32.6]} 22. Bc2 {[%clk 0:02:05]}
22... Rfd8 {[%clk 0:00:25.2]} 23. Rg3 {[%clk 0:01:50.9]} 23... Kf8 {[%clk
0:00:22.3]} 24. Re1 {[%clk 0:01:44.2]} 24... Ra7 {[%clk 0:00:12]} 25. Rxe6
{[%clk 0:01:41.8]} 25... Qb8 {[%clk 0:00:05.4]} 26. Rxf6+ {[%clk 0:01:38.7]}
26... Bxf6 {[%clk 0:00:05.2]} 27. Qg8+ {[%clk 0:01:38.4]} 27... Ke7 {[%clk
0:00:05.4]} 28. Qf7# {[%clk 0:01:39]} 1-0

[Event "Early-Titled-Tuesday-Blitz-September-26-2023"]
[Site "Chess.com"]
[Date "2023.09.26"]
[Round "3"]
[White "Darko-Dimitrijevic"]
[Black "IPAchess"]
[Result "1-0"]
[WhiteElo "2182"]
[BlackElo "2320"]
[TimeControl "180+1"]
[EndTime "8:26:24 PDT"]
[Termination "Darko-Dimitrijevic won by resignation"]

1. d4 {[%clk 0:03:00.9]} 1... d5 {[%clk 0:02:59.8]} 2. c4 {[%clk 0:02:59.9]}
2... e6 {[%clk 0:03:00.4]} 3. Nc3 {[%clk 0:02:59.2]} 3... Nf6 {[%clk 0:03:01]}
4. Nf3 {[%clk 0:02:59.2]} 4... Bb4 {[%clk 0:03:01.5]} 5. e3 {[%clk 0:02:58.5]}
5... O-O {[%clk 0:03:01.7]} 6. Be2 {[%clk 0:02:57.5]} 6... c5 {[%clk 0:03:02.2]}
7. dxc5 {[%clk 0:02:56.5]} 7... Nbd7 {[%clk 0:03:01.4]} 8. O-O {[%clk
0:02:50.7]} 8... Nxc5 {[%clk 0:03:00.5]} 9. cxd5 {[%clk 0:02:50.2]} 9... Bxc3
{[%clk 0:03:00.1]} 10. bxc3 {[%clk 0:02:49.7]} 10... Nxd5 {[%clk 0:03:00.8]} 11.
Bb2 {[%clk 0:02:41.2]} 11... Bd7 {[%clk 0:02:52.2]} 12. c4 {[%clk 0:02:38.9]}
12... Nf6 {[%clk 0:02:50.6]} 13. Ne5 {[%clk 0:02:29.3]} 13... Ba4 {[%clk
0:02:49.5]} 14. Qe1 {[%clk 0:02:26]} 14... Qc7 {[%clk 0:02:36]} 15. Qb4 {[%clk
0:02:22.7]} 15... a5 {[%clk 0:02:28.5]} 16. Qa3 {[%clk 0:02:13.7]} 16... Rfd8
{[%clk 0:02:18.3]} 17. Bd4 {[%clk 0:02:12.5]} 17... Bc2 {[%clk 0:02:04.7]} 18.
Rac1 {[%clk 0:02:09.8]} 18... Be4 {[%clk 0:01:56.3]} 19. Qxc5 {[%clk 0:02:08.1]}
19... Qxc5 {[%clk 0:01:52.3]} 20. Bxc5 {[%clk 0:02:07.2]} 20... Rd2 {[%clk
0:01:53]} 21. Bf3 {[%clk 0:02:03]} 21... Bxf3 {[%clk 0:01:52]} 22. gxf3 {[%clk
0:02:00.9]} 22... Rxa2 {[%clk 0:01:52.6]} 23. Rb1 {[%clk 0:01:57.8]} 23... Rc8
{[%clk 0:01:45.2]} 24. Rxb7 {[%clk 0:01:55]} 24... h5 {[%clk 0:01:43.5]} 25. Bd4
{[%clk 0:01:52]} 25... a4 {[%clk 0:01:42.6]} 26. Ra7 {[%clk 0:01:45.5]} 26... h4
{[%clk 0:01:34.9]} 27. Kg2 {[%clk 0:01:39.4]} 27... Ne8 {[%clk 0:01:30.9]} 28.
c5 {[%clk 0:01:35.1]} 28... Nc7 {[%clk 0:01:29.8]} 29. Rc1 {[%clk 0:01:26.2]}
29... f6 {[%clk 0:01:28.8]} 30. Nc4 {[%clk 0:01:22.3]} 30... e5 {[%clk
0:01:25.5]} 31. Ba1 {[%clk 0:01:19.3]} 31... Nd5 {[%clk 0:01:25.6]} 32. Rd1
{[%clk 0:01:13.9]} 32... Nc7 {[%clk 0:01:13.6]} 33. Nd6 {[%clk 0:01:12.3]} 33...
h3+ {[%clk 0:01:02.9]} 34. Kg3 {[%clk 0:01:11]} 1-0

[Event "Early-Titled-Tuesday-Blitz-September-26-2023"]
[Site "Chess.com"]
[Date "2023.09.26"]
[Round "3"]
[White "Misticpikachu"]
[Black "Bodhanas"]
[Result "1-0"]
[WhiteElo "2530"]
[BlackElo "2038"]
[TimeControl "180+1"]
[EndTime "8:26:25 PDT"]
[Termination "Misticpikachu won by checkmate"]

1. c4 {[%clk 0:03:00.9]} 1... d6 {[%clk 0:02:55.9]} 2. Nf3 {[%clk 0:02:59.1]}
2... c5 {[%clk 0:02:55.6]} 3. Nc3 {[%clk 0:02:58.4]} 3... Nf6 {[%clk 0:02:54.7]}
4. g3 {[%clk 0:02:59]} 4... Nc6 {[%clk 0:02:54.3]} 5. Bg2 {[%clk 0:02:59.6]}
5... g6 {[%clk 0:02:54.2]} 6. O-O {[%clk 0:03:00.2]} 6... Bg7 {[%clk 0:02:53.8]}
7. d4 {[%clk 0:03:00.7]} 7... cxd4 {[%clk 0:02:50.3]} 8. Nxd4 {[%clk 0:03:01.6]}
8... Nxd4 {[%clk 0:02:49.3]} 9. Qxd4 {[%clk 0:03:02.5]} 9... O-O {[%clk
0:02:48.6]} 10. b3 {[%clk 0:03:00.9]} 10... a6 {[%clk 0:02:32.6]} 11. Bb2 {[%clk
0:03:01]} 11... Rb8 {[%clk 0:02:26]} 12. Rfd1 {[%clk 0:03:00.2]} 12... Bf5
{[%clk 0:02:22.1]} 13. Rac1 {[%clk 0:02:58.1]} 13... Qd7 {[%clk 0:02:10.6]} 14.
Nd5 {[%clk 0:02:52.4]} 14... Rbd8 {[%clk 0:01:54.1]} 15. Qd2 {[%clk 0:02:45.2]}
15... Nxd5 {[%clk 0:01:51.6]} 16. Bxg7 {[%clk 0:02:45.1]} 16... Kxg7 {[%clk
0:01:51.2]} 17. Qxd5 {[%clk 0:02:45.7]} 17... Bh3 {[%clk 0:01:48.3]} 18. Qxb7
{[%clk 0:02:44.6]} 18... Bxg2 {[%clk 0:01:47.6]} 19. Qxd7 {[%clk 0:02:41.5]}
19... Rxd7 {[%clk 0:01:47.1]} 20. Kxg2 {[%clk 0:02:41.9]} 20... Rc7 {[%clk
0:01:44.8]} 21. Rd5 {[%clk 0:02:41.1]} 21... Rb8 {[%clk 0:01:40.3]} 22. e4
{[%clk 0:02:37.6]} 22... Rb6 {[%clk 0:01:38.4]} 23. e5 {[%clk 0:02:36.7]} 23...
Rc5 {[%clk 0:01:30.4]} 24. Rxc5 {[%clk 0:02:35]} 24... dxc5 {[%clk 0:01:30.3]}
25. Rd1 {[%clk 0:02:35.9]} 25... a5 {[%clk 0:01:28.7]} 26. Rd7 {[%clk
0:02:35.5]} 26... a4 {[%clk 0:01:26]} 27. Rxe7 {[%clk 0:02:30.4]} 27... axb3
{[%clk 0:01:25.7]} 28. axb3 {[%clk 0:02:31.3]} 28... Rxb3 {[%clk 0:01:25]} 29.
e6 {[%clk 0:02:27.9]} 29... Kf6 {[%clk 0:01:23.2]} 30. Rxf7+ {[%clk 0:02:27.1]}
30... Kxe6 {[%clk 0:01:23.4]} 31. Rxh7 {[%clk 0:02:27.4]} 31... Rc3 {[%clk
0:01:22.1]} 32. Rh4 {[%clk 0:02:27.4]} 32... g5 {[%clk 0:01:20]} 33. Rh5 {[%clk
0:02:20.6]} 33... Kf5 {[%clk 0:01:17.3]} 34. h4 {[%clk 0:02:19.2]} 34... Rxc4
{[%clk 0:01:16.6]} 35. Rxg5+ {[%clk 0:02:19]} 35... Kf6 {[%clk 0:01:16.5]} 36.
Rg8 {[%clk 0:02:18.6]} 36... Rc1 {[%clk 0:01:14.6]} 37. Rc8 {[%clk 0:02:18.1]}
37... c4 {[%clk 0:01:14.9]} 38. h5 {[%clk 0:02:18.5]} 38... c3 {[%clk
0:01:14.1]} 39. h6 {[%clk 0:02:17.4]} 39... Kg6 {[%clk 0:01:14.1]} 40. Rc6+
{[%clk 0:02:17.6]} 40... Kh7 {[%clk 0:01:14.1]} 41. g4 {[%clk 0:02:17.8]} 41...
Ra1 {[%clk 0:01:07.8]} 42. g5 {[%clk 0:02:13.5]} 42... Ra5 {[%clk 0:01:04.8]}
43. f4 {[%clk 0:02:02.8]} 43... Ra4 {[%clk 0:00:55.9]} 44. Kg3 {[%clk
0:01:58.9]} 44... Ra3 {[%clk 0:00:53.3]} 45. Kg4 {[%clk 0:01:58.2]} 45... Ra1
{[%clk 0:00:47.6]} 46. Rc7+ {[%clk 0:01:58.1]} 46... Kg8 {[%clk 0:00:45.7]} 47.
Rxc3 {[%clk 0:01:58]} 47... Rg1+ {[%clk 0:00:45.7]} 48. Kf5 {[%clk 0:01:58]}
48... Rf1 {[%clk 0:00:44.9]} 49. Kg6 {[%clk 0:01:55.4]} 49... Rxf4 {[%clk
0:00:42.9]} 50. Rc8+ {[%clk 0:01:55.3]} 50... Rf8 {[%clk 0:00:41.8]} 51. h7+
{[%clk 0:01:55.3]} 51... Kh8 {[%clk 0:00:41.9]} 52. Rxf8# {[%clk 0:01:54.8]} 1-0

[Event "Early-Titled-Tuesday-Blitz-September-26-2023"]
[Site "Chess.com"]
[Date "2023.09.26"]
[Round "3"]
[White "moro182"]
[Black "FREDERICKtheMATE"]
[Result "1-0"]
[WhiteElo "2817"]
[BlackElo "2586"]
[TimeControl "180+1"]
[EndTime "8:26:30 PDT"]
[Termination "moro182 won by resignation"]

1. d4 {[%clk 0:03:00.9]} 1... Nf6 {[%clk 0:02:58.6]} 2. Bf4 {[%clk 0:03:00.4]}
2... d5 {[%clk 0:02:58]} 3. e3 {[%clk 0:03:00.1]} 3... e6 {[%clk 0:02:58.6]} 4.
Nf3 {[%clk 0:02:59.9]} 4... Bd6 {[%clk 0:02:59.2]} 5. Nbd2 {[%clk 0:02:59.9]}
5... O-O {[%clk 0:02:58.9]} 6. Bd3 {[%clk 0:02:59.6]} 6... c5 {[%clk 0:02:59.4]}
7. c3 {[%clk 0:02:59]} 7... Nc6 {[%clk 0:02:59.9]} 8. dxc5 {[%clk 0:02:53.8]}
8... Bxc5 {[%clk 0:02:58.2]} 9. O-O {[%clk 0:02:53.7]} 9... Bd6 {[%clk
0:02:53.5]} 10. Bxd6 {[%clk 0:02:53.1]} 10... Qxd6 {[%clk 0:02:54.4]} 11. e4
{[%clk 0:02:53.8]} 11... e5 {[%clk 0:02:50.4]} 12. exd5 {[%clk 0:02:49]} 12...
Qxd5 {[%clk 0:02:51.3]} 13. Qc2 {[%clk 0:02:46.7]} 13... h6 {[%clk 0:02:48.3]}
14. Rfe1 {[%clk 0:02:45.5]} 14... Bg4 {[%clk 0:02:45.3]} 15. Bc4 {[%clk
0:02:44.5]} 15... Qd6 {[%clk 0:02:39.3]} 16. h3 {[%clk 0:02:44.5]} 16... Bxf3
{[%clk 0:02:37.8]} 17. Nxf3 {[%clk 0:02:45.4]} 17... e4 {[%clk 0:02:38.2]} 18.
Nd2 {[%clk 0:02:38.2]} 18... Ne5 {[%clk 0:02:25.1]} 19. Nxe4 {[%clk 0:02:32.7]}
19... Nxe4 {[%clk 0:02:24.2]} 20. Qxe4 {[%clk 0:02:33.6]} 20... Nxc4 {[%clk
0:02:24.2]} 21. Qxc4 {[%clk 0:02:34.5]} 21... Qb6 {[%clk 0:02:23.3]} 22. Re2
{[%clk 0:02:32.6]} 22... Rac8 {[%clk 0:02:23.2]} 23. Qb3 {[%clk 0:02:27.2]}
23... Rfe8 {[%clk 0:02:08.4]} 24. Rxe8+ {[%clk 0:02:23.4]} 24... Rxe8 {[%clk
0:02:07.7]} 25. Qxb6 {[%clk 0:02:24.3]} 25... axb6 {[%clk 0:02:07.5]} 26. Kf1
{[%clk 0:02:25.2]} 26... Kf8 {[%clk 0:02:05.3]} 27. Rd1 {[%clk 0:02:22.8]} 27...
Ra8 {[%clk 0:02:05.1]} 28. a3 {[%clk 0:02:21.7]} 28... Ke7 {[%clk 0:02:05.5]}
29. Rd5 {[%clk 0:02:16.7]} 29... Ke6 {[%clk 0:02:00.1]} 30. Rb5 {[%clk 0:02:16]}
30... Ra6 {[%clk 0:02:00.2]} 31. Ke2 {[%clk 0:02:16.1]} 31... Kd6 {[%clk
0:02:00.1]} 32. Kd3 {[%clk 0:02:15.3]} 32... g6 {[%clk 0:01:53.9]} 33. Rb4
{[%clk 0:02:14.7]} 33... Kc6 {[%clk 0:01:46.3]} 34. Rf4 {[%clk 0:02:12.2]} 34...
f5 {[%clk 0:01:44.7]} 35. g4 {[%clk 0:02:11.2]} 35... Ra5 {[%clk 0:01:43.4]} 36.
gxf5 {[%clk 0:02:10.2]} 36... gxf5 {[%clk 0:01:44.3]} 37. Rh4 {[%clk 0:02:10.4]}
37... Rd5+ {[%clk 0:01:43.2]} 38. Ke3 {[%clk 0:02:07.5]} 38... Rd6 {[%clk
0:01:43.3]} 39. Rh5 {[%clk 0:02:02.9]} 39... Re6+ {[%clk 0:01:35.7]} 40. Kf3
{[%clk 0:02:00.6]} 40... Kd5 {[%clk 0:01:33.8]} 41. Rxf5+ {[%clk 0:01:55.3]}
41... Kc4 {[%clk 0:01:34.3]} 42. Rf4+ {[%clk 0:01:55.2]} 42... Kd3 {[%clk
0:01:32.8]} 43. Rd4+ {[%clk 0:01:51.9]} 43... Kc2 {[%clk 0:01:32.4]} 44. Rb4
{[%clk 0:01:52.8]} 44... Kd3 {[%clk 0:01:32.2]} 45. Kg4 {[%clk 0:01:48]} 45...
Rg6+ {[%clk 0:01:26.4]} 46. Kh5 {[%clk 0:01:41.8]} 46... Rf6 {[%clk 0:01:26.1]}
47. f4 {[%clk 0:01:41.6]} 47... Kc2 {[%clk 0:01:21.5]} 48. Kg4 {[%clk 0:01:32]}
48... Rg6+ {[%clk 0:01:20.5]} 49. Kf5 {[%clk 0:01:31.4]} 49... Rc6 {[%clk
0:01:20.8]} 50. Ke5 {[%clk 0:01:28.2]} 50... Kd3 {[%clk 0:01:20.9]} 51. f5
{[%clk 0:01:28.3]} 51... Rc5+ {[%clk 0:01:20]} 52. Kf6 {[%clk 0:01:25.6]} 1-0